bitfinex/quotes_BTCUSD_20241216
["timestamp","ask_amount","ask_price","bid_price","bid_amount"]
[1734326744848,0.12498499,104720.0,104700.0,0.66091799]
[1734326745018,0.66149966,104730.0,104700.0,0.66091799]
[1734326745197,0.85248166,104730.0,104700.0,0.66091799]
[1734326745848,0.66149966,104730.0,104700.0,0.66091799]
[1734326746057,0.190987,104720.0,104700.0,0.46990699]
[1734326746525,0.190987,104720.0,104700.0,0.66091799]
[1734326749220,0.1910733,104720.0,104700.0,0.66091799]
[1734326749968,8.63e-05,104720.0,104700.0,0.66091799]
[1734326750412,0.1910733,104720.0,104700.0,0.66091799]
[1734326751578,0.1910733,104720.0,104700.0,0.46860319]
[1734326752360,0.1910733,104720.0,104700.0,0.65961219]
[1734326753478,0.1910733,104720.0,104700.0,0.46860119]
[1734326753684,0.3820603,104720.0,104700.0,0.27759219]
[1734326754104,0.44412996,104720.0,104700.0,0.26704505]
[1734326754308,0.66342066,104720.0,104700.0,0.00134085]
[1734326754512,0.191003,104710.0,104700.0,0.00134085]
[1734326754940,0.191003,104710.0,104700.0,0.00034155]
[1734326757394,0.25307266,104710.0,104700.0,0.00034155]
[1734326760076,0.06206966,104710.0,104700.0,0.00034155]
[1734326760292,0.191003,104710.0,104700.0,0.00034155]
[1734326761289,0.25307266,104710.0,104700.0,0.00034155]
[1734326761640,0.25307266,104710.0,104700.0,0.01034155]
[1734326763331,0.191003,104710.0,104700.0,0.01034155]
[1734326764889,0.87790011,104720.0,104700.0,0.01034155]
[1734326765096,0.06206966,104710.0,104700.0,0.01034155]
[1734326765288,0.25307266,104710.0,104700.0,0.01034155]
[1734326765526,0.37937266,104710.0,104700.0,0.01034155]
[1734326765676,0.46516444,104710.0,104700.0,0.01034155]
[1734326766082,0.59385211,104710.0,104700.0,0.01034155]
[1734326767509,0.46516444,104710.0,104700.0,0.01034155]
[1734326767710,0.46516444,104710.0,104680.0,0.89896239]
[1734326767711,0.06206966,104700.0,104680.0,0.67844311]
[1734326767921,0.06206966,104700.0,104690.0,5.625e-05]
[1734326769541,0.84719691,104710.0,104690.0,5.625e-05]
[1734326769969,0.65619391,104710.0,104690.0,5.625e-05]
[1734326770183,0.84721291,104710.0,104690.0,5.625e-05]
[1734326772514,0.84721291,104710.0,104690.0,0.00022885]
[1734326772883,0.84720222,104710.0,104690.0,0.00022885]
[1734326773426,0.84728852,104710.0,104690.0,0.00022885]
[1734326775502,0.37789066,104700.0,104690.0,0.00022885]
[1734326779972,0.31189065,104700.0,104690.0,0.00022885]
[1734326781052,0.30039066,104700.0,104690.0,0.00022885]
[1734326782878,0.47368136,104700.0,104690.0,0.00022885]
[1734326783720,0.39468136,104700.0,104690.0,0.00022885]
[1734326783927,0.238321,104700.0,104690.0,0.00022885]
[1734326784829,0.30039066,104700.0,104690.0,0.00022885]
[1734326788471,0.238321,104700.0,104690.0,0.00022885]
[1734326788689,0.30039066,104700.0,104690.0,0.00022885]
[1734326789906,0.23439065,104700.0,104690.0,0.00022885]
[1734326791646,0.17232099,104700.0,104690.0,0.00022885]
[1734326792059,0.23439065,104700.0,104690.0,0.00022885]
[1734326792258,0.17232099,104700.0,104690.0,0.00022885]
[1734326795038,0.59652463,104710.0,104690.0,0.07812885]
[1734326795173,0.08584683,104710.0,104700.0,0.191021]
[1734326795371,8.63e-05,104710.0,104700.0,0.268921]
[1734326796400,8.63e-05,104710.0,104700.0,0.0779]
[1734326797390,8.63e-05,104710.0,104700.0,0.268921]
[1734326798878,0.52985827,104720.0,104700.0,0.268921]
[1734326798879,0.32404215,104720.0,104700.0,0.268921]
[1734326799081,0.32404215,104720.0,104700.0,0.459931]
[1734326799413,0.51503615,104720.0,104700.0,0.26891]
[1734326802521,0.08572231,104720.0,104700.0,0.459921]
[1734326802720,0.08572231,104720.0,104710.0,0.268603]
[1734326803200,0.90715067,104730.0,104710.0,0.0776]
[1734326803563,1.00144137,104730.0,104710.0,0.0776]
[1734326804395,1.0014647,104730.0,104710.0,0.0776]
[1734326804863,0.190985,104720.0,104710.0,0.0776]
[1734326805071,0.190985,104720.0,104700.0,0.464121]
[1734326805278,0.25305466,104720.0,104700.0,0.464121]
[1734326806038,0.25305466,104720.0,104700.0,0.655133]
[1734326806239,0.190985,104720.0,104700.0,0.655133]
[1734326806439,0.27671664,104720.0,104700.0,0.655133]
[1734326806869,0.27671664,104720.0,104700.0,0.464121]
[1734326807200,0.27671664,104720.0,104700.0,0.655133]
[1734326807396,0.27671664,104720.0,104700.0,0.464121]
[1734326807828,0.190985,104720.0,104700.0,0.464121]
[1734326808236,0.1910713,104720.0,104700.0,0.464121]
[1734326809002,0.27678166,104720.0,104700.0,0.464121]
[1734326810178,0.08579666,104720.0,104700.0,0.464121]
[1734326810384,0.08579666,104720.0,104710.0,0.191003]
[1734326811349,0.27678166,104720.0,104700.0,0.655128]
[1734326811756,0.1910713,104720.0,104700.0,0.655128]
[1734326814420,8.63e-05,104720.0,104700.0,0.655128]
[1734326815087,0.25314196,104720.0,104700.0,0.464118]
[1734326815284,0.25307266,104710.0,104690.0,0.52057689]
[1734326815501,0.191003,104710.0,104690.0,0.52057689]
[1734326815700,0.191003,104710.0,104690.0,0.71160489]
[1734326818744,0.191003,104710.0,104690.0,0.71160289]
[1734326818956,0.191003,104710.0,104690.0,0.52057289]
[1734326819162,0.191003,104710.0,104690.0,0.71160289]
[1734326819367,0.191003,104710.0,104690.0,0.52057289]
[1734326819797,0.191003,104710.0,104690.0,0.71160189]
[1734326819998,0.191003,104710.0,104690.0,0.52057289]
[1734326820628,0.191003,104710.0,104690.0,0.71160389]
[1734326820827,0.191003,104710.0,104690.0,0.52057289]
[1734326821824,0.9379606,104720.0,104700.0,0.191021]
[1734326822041,0.82865266,104720.0,104700.0,0.191021]
[1734326822239,0.2767611,104720.0,104700.0,0.458029]
[1734326822413,0.1910723,104720.0,104700.0,0.458029]
[1734326822818,0.3820673,104720.0,104700.0,0.458029]
[1734326822995,0.6587531,104720.0,104700.0,0.267008]
[1734326823198,0.72082276,104720.0,104700.0,0.267008]
[1734326823359,0.72082276,104720.0,104700.0,0.076]
[1734326825614,0.191003,104710.0,104700.0,0.076]
[1734326826218,0.72082376,104720.0,104700.0,0.076]
[1734326829157,0.191003,104710.0,104700.0,0.076]
[1734326832146,0.84942444,104720.0,104700.0,0.076]
[1734326835785,0.84952708,104720.0,104700.0,0.076]
[1734326836953,1.02103998,104720.0,104700.0,0.076]
[1734326839299,0.191003,104710.0,104700.0,0.076]
[1734326839531,0.27675945,104710.0,104700.0,0.076]
[1734326840527,0.27684705,104710.0,104700.0,0.076]
[1734326842701,0.27684705,104710.0,104690.0,0.23755495]
[1734326842977,0.83768398,104710.0,104700.0,0.0001726]
[1734326843247,1.06073237,104710.0,104700.0,0.0001726]
[1734326843491,1.05997468,104710.0,104700.0,0.0001726]
[1734326844734,1.12204434,104710.0,104700.0,0.0001726]
[1734326845718,1.0526756,104710.0,104700.0,0.0001726]
[1734326846127,1.18137103,104710.0,104700.0,0.0001726]
[1734326848405,1.19189109,104710.0,104700.0,0.0001726]
[1734326852440,0.76815241,104710.0,104700.0,0.0001726]
[1734326852831,0.5964643,104710.0,104700.0,0.0001726]
[1734326853019,0.65853396,104710.0,104700.0,0.0001726]
[1734326854451,0.65845929,104710.0,104700.0,0.0001726]
[1734326858498,0.65847578,104710.0,104700.0,0.0001726]
[1734326859120,0.44408666,104710.0,104700.0,0.0001726]
[1734326859325,0.65847577,104710.0,104700.0,0.0001726]
[1734326860364,0.40539211,104710.0,104700.0,0.0001726]
[1734326863730,0.46746177,104710.0,104700.0,0.0001726]
[1734326867804,0.8487923,104710.0,104700.0,0.0001726]
[1734326868043,0.76107306,104710.0,104700.0,0.0001726]
[1734326868247,0.97546218,104710.0,104700.0,0.0001726]
[1734326868460,0.88970654,104710.0,104700.0,0.0001726]
[1734326868886,0.78058472,104710.0,104680.0,0.463316]
[1734326869089,0.78058472,104710.0,104680.0,0.46446091]
[1734326869338,0.191021,104700.0,104680.0,0.46446091]
[1734326870779,0.78058872,104710.0,104690.0,0.075]
[1734326871126,0.97160872,104710.0,104690.0,0.075]
[1734326872969,0.97161986,104710.0,104690.0,0.075]
[1734326874337,0.6434292,104710.0,104690.0,0.075]
[1734326874538,0.8344462,104710.0,104690.0,0.075]
[1734326874740,0.7874462,104710.0,104690.0,0.075]
[1734326875842,0.191021,104700.0,104690.0,0.075]
[1734326876548,0.191021,104700.0,104690.0,0.0750863]
[1734326879570,0.191021,104700.0,104680.0,0.30521122]
[1734326879878,0.191021,104700.0,104680.0,0.239148]
[1734326880004,0.65849486,104710.0,104680.0,0.239148]
[1734326880413,0.65849486,104710.0,104680.0,0.430196]
[1734326880836,0.84951286,104710.0,104680.0,0.621242]
[1734326881243,0.84951286,104710.0,104680.0,0.430194]
[1734326882117,0.52091666,104700.0,104680.0,0.173]
[1734326882330,0.60667994,104700.0,104680.0,0.173]
[1734326882469,0.54461028,104700.0,104680.0,0.173]
[1734326883560,0.54461028,104700.0,104680.0,0.364057]
[1734326884742,0.54461028,104700.0,104680.0,0.441057]
[1734326884943,0.54461928,104700.0,104680.0,0.441057]
[1734326885567,0.35358828,104700.0,104680.0,0.441057]
[1734326886902,0.27678828,104700.0,104680.0,0.632105]
[1734326887101,0.6717392,104710.0,104690.0,0.077]
[1734326887330,0.92482586,104710.0,104690.0,0.077]
[1734326888149,0.08576328,104700.0,104690.0,0.077]
[1734326889812,0.01976327,104700.0,104690.0,0.077]
[1734326890233,0.21078427,104700.0,104690.0,0.077]
[1734326890847,0.21078427,104700.0,104680.0,0.6796823]
[1734326894042,0.191021,104700.0,104680.0,0.6796823]
[1734326895083,0.82005945,104710.0,104680.0,0.6796823]
[1734326895286,0.191021,104700.0,104680.0,0.6796823]
[1734326899865,0.21087945,104700.0,104680.0,0.6796823]
[1734326900074,0.08585846,104700.0,104680.0,0.6796823]
[1734326900277,0.27687946,104700.0,104680.0,0.6796823]
[1734326900678,0.27705206,104700.0,104680.0,0.6796823]
[1734326901240,0.27705206,104700.0,104680.0,0.6796813]
[1734326903883,0.08603106,104700.0,104680.0,0.8707283]
[1734326904103,0.35735406,104700.0,104680.0,0.6796803]
[1734326904929,0.29135405,104700.0,104680.0,0.6796803]
[1734326905128,0.29135405,104700.0,104680.0,0.4886333]
[1734326905691,0.48237705,104700.0,104680.0,0.4886333]
[1734326905893,0.48237705,104700.0,104680.0,0.2483863]
[1734326906067,0.54444671,104700.0,104680.0,0.2483863]
[1734326906295,0.6732321,104700.0,104680.0,0.1730863]
[1734326906425,0.6732321,104700.0,104680.0,0.1500863]
[1734326906426,0.19104,104690.0,104680.0,0.1500863]
[1734326907274,0.25310966,104690.0,104680.0,8.63e-05]
[1734326907618,0.33220966,104690.0,104680.0,8.63e-05]
[1734326907835,0.46101909,104690.0,104680.0,8.63e-05]
[1734326909198,0.39894943,104690.0,104680.0,8.63e-05]
[1734326909415,0.27014,104690.0,104680.0,8.63e-05]
[1734326910049,0.20790943,104690.0,104680.0,8.63e-05]
[1734326910217,0.39894943,104690.0,104680.0,8.63e-05]
[1734326911378,0.27014,104690.0,104680.0,8.63e-05]
[1734326912480,0.33220966,104690.0,104680.0,8.63e-05]
[1734326914905,0.41799943,104690.0,104680.0,8.63e-05]
[1734326915115,0.35199942,104690.0,104680.0,8.63e-05]
[1734326918818,0.35197251,104690.0,104680.0,8.63e-05]
[1734326919226,0.26620965,104690.0,104680.0,8.63e-05]
[1734326920015,0.35197251,104690.0,104680.0,8.63e-05]
[1734326920262,0.06206966,104690.0,104680.0,8.63e-05]
[1734326920866,0.25310966,104690.0,104680.0,8.63e-05]
[1734326923713,0.25328226,104690.0,104680.0,8.63e-05]
[1734326924906,0.24935191,104690.0,104680.0,8.63e-05]
[1734326929983,0.06224226,104690.0,104680.0,8.63e-05]
[1734326930390,0.25328226,104690.0,104680.0,8.63e-05]
[1734326932554,0.1912126,104690.0,104680.0,8.63e-05]
[1734326935005,1.0598427,104700.0,104680.0,8.63e-05]
[1734326935193,0.25310966,104690.0,104680.0,8.63e-05]
[1734326936012,0.25319596,104690.0,104680.0,8.63e-05]
[1734326939390,0.3389414,104690.0,104680.0,8.63e-05]
[1734326939969,0.1479014,104690.0,104680.0,8.63e-05]
[1734326940369,0.3389414,104690.0,104680.0,8.63e-05]
[1734326941861,0.25319596,104690.0,104680.0,8.63e-05]
[1734326942269,0.3389414,104690.0,104680.0,8.63e-05]
[1734326942470,0.4332321,104690.0,104680.0,8.63e-05]
[1734326942676,0.77031709,104690.0,104680.0,8.63e-05]
[1734326942880,0.90606254,104690.0,104680.0,8.63e-05]
[1734326943084,0.99180799,104690.0,104680.0,8.63e-05]
[1734326943494,0.92973833,104690.0,104680.0,8.63e-05]
[1734326944436,0.91094117,104690.0,104680.0,8.63e-05]
[1734326945863,0.84853512,104690.0,104650.0,0.15]
[1734326946072,0.51438333,104680.0,104660.0,0.0009929]
[1734326946428,0.70545033,104680.0,104650.0,0.34111]
[1734326947842,0.70545033,104680.0,104650.0,0.39471857]
[1734326948238,0.51438333,104680.0,104650.0,0.58583057]
[1734326948587,0.18004667,104680.0,104660.0,0.191094]
[1734326948741,0.24211633,104680.0,104660.0,0.191094]
[1734326948959,0.18004667,104680.0,104660.0,0.267594]
[1734326949634,0.24211633,104680.0,104660.0,0.267594]
[1734326949970,0.18004667,104680.0,104660.0,0.267594]
[1734326950175,0.24211633,104680.0,104660.0,0.267594]
[1734326950381,0.18004667,104680.0,104660.0,0.267594]
[1734326950672,0.24211633,104680.0,104660.0,0.267594]
[1734326950873,0.18004667,104680.0,104660.0,0.267594]
[1734326951101,0.24211633,104680.0,104660.0,0.267594]
[1734326951466,0.18004667,104680.0,104660.0,0.26758945]
[1734326951671,0.24211633,104680.0,104660.0,0.26758945]
[1734326952146,0.18005776,104680.0,104660.0,0.45868345]
[1734326952291,0.21456023,104690.0,104670.0,0.0832]
[1734326952463,0.08590963,104690.0,104670.0,0.274263]
[1734326952872,0.08590963,104690.0,104670.0,0.465339]
[1734326953500,0.08590963,104690.0,104670.0,0.382139]
[1734326953700,0.00014257,104690.0,104680.0,0.271658]
[1734326953902,0.00014257,104690.0,104680.0,0.444658]
[1734326954810,0.02025482,104710.0,104680.0,0.444658]
[1734326955068,0.11454552,104710.0,104690.0,0.19103]
[1734326955261,0.17661518,104710.0,104690.0,0.382061]
[1734326955417,0.02025482,104710.0,104700.0,0.191021]
[1734326955618,0.1287369,104720.0,104700.0,0.382032]
[1734326955834,0.1287369,104720.0,104700.0,0.573043]
[1734326956234,0.06215596,104720.0,104700.0,0.573043]
[1734326956717,0.06215596,104720.0,104700.0,0.573032]
[1734326956882,0.06215596,104720.0,104700.0,0.382021]
[1734326958019,8.63e-05,104720.0,104710.0,0.191003]
[1734326960021,1.0680636,104740.0,104710.0,0.191003]
[1734326960022,0.89652747,104740.0,104710.0,0.191003]
[1734326960227,0.2514506,104740.0,104720.0,0.190985]
[1734326960484,0.18486966,104740.0,104720.0,0.190985]
[1734326960684,0.18486966,104740.0,104720.0,0.381961]
[1734326960888,0.06206966,104730.0,104710.0,0.457396]
[1734326961431,0.06223863,104730.0,104710.0,0.457396]
[1734326962158,0.00016897,104730.0,104710.0,0.457385]
[1734326962353,0.00016897,104730.0,104720.0,0.190985]
[1734326964277,0.00016897,104730.0,104720.0,0.213985]
[1734326965650,0.00016897,104730.0,104720.0,0.339185]
[1734326968432,0.00016897,104730.0,104720.0,0.290085]
[1734326968630,0.00016897,104730.0,104720.0,0.190985]
[1734326971718,0.00016897,104730.0,104710.0,0.653872]
[1734326971894,0.00016897,104730.0,104720.0,0.190985]
[1734326972100,0.00016897,104730.0,104710.0,0.572974]
[1734326972838,0.00025527,104730.0,104710.0,0.572974]
[1734326973040,0.28551397,104730.0,104710.0,0.38198]
[1734326975050,0.56232133,104730.0,104710.0,0.38198]
[1734326975226,0.56232133,104730.0,104710.0,0.190989]
[1734326976825,0.69262133,104730.0,104710.0,0.190989]
[1734326977494,0.60678197,104730.0,104710.0,0.190989]
[1734326979336,0.79775997,104730.0,104710.0,0.190989]
[1734326979483,0.60678197,104730.0,104710.0,0.190989]
[1734326980778,0.60678197,104730.0,104710.0,0.381992]
[1734326984969,0.60678197,104730.0,104710.0,0.3821646]
[1734326989651,0.32152327,104730.0,104710.0,0.5731566]
[1734326990816,0.32152327,104730.0,104720.0,0.190985]
[1734326991014,0.19122327,104730.0,104720.0,0.190985]
[1734326992839,0.19122327,104730.0,104710.0,0.5731466]
[1734326998149,0.27664646,104730.0,104710.0,0.5731466]
[1734326998611,0.19122327,104730.0,104710.0,0.5731466]
[1734326998828,0.27688042,104730.0,104710.0,0.5731466]
[1734326999185,0.40536615,104730.0,104710.0,0.5731466]
[1734327000112,0.83448907,104730.0,104710.0,0.1911616]
[1734327000407,1.00580338,104730.0,104710.0,0.1911616]
[1734327000580,0.94373372,104730.0,104710.0,0.1911616]
[1734327001127,0.38571246,104730.0,104710.0,0.44422226]
[1734327001321,0.38571246,104730.0,104720.0,0.190985]
[1734327001495,0.21439815,104730.0,104720.0,0.190985]
[1734327001660,0.40536515,104730.0,104710.0,0.4583516]
[1734327001855,0.57667946,104730.0,104710.0,0.6493446]
[1734327002083,0.57667946,104730.0,104710.0,0.4583516]
[1734327002282,0.57667946,104730.0,104710.0,0.6493446]
[1734327003269,0.87332064,104730.0,104710.0,0.3821516]
[1734327003906,0.87332064,104730.0,104710.0,0.1911616]
[1734327004955,1.06429964,104730.0,104710.0,0.1911616]
[1734327005491,0.68234464,104730.0,104710.0,0.1911616]
[1734327005692,0.68234464,104730.0,104710.0,0.3821636]
[1734327006123,0.6829156,104730.0,104710.0,0.3821636]
[1734327008284,0.65375042,104730.0,104710.0,0.5731566]
[1734327008400,0.65375042,104730.0,104710.0,0.3821546]
[1734327009296,0.65375042,104730.0,104710.0,0.5731486]
[1734327009672,0.65375042,104730.0,104710.0,0.3821546]
[1734327010190,0.65375042,104730.0,104710.0,0.5731486]
[1734327010327,0.65375042,104730.0,104710.0,0.3821546]
[1734327010523,0.65375487,104730.0,104710.0,0.3821546]
[1734327011392,0.65375487,104730.0,104710.0,0.5731476]
[1734327011667,0.86821743,104730.0,104710.0,0.3821546]
[1734327012102,0.08578502,104720.0,104710.0,0.1911616]
[1734327012813,0.08578502,104720.0,104710.0,0.3821546]
[1734327014430,0.58775486,104730.0,104710.0,0.3821546]
[1734327014904,0.41618481,104730.0,104700.0,0.543072]
[1734327015115,0.41618481,104730.0,104700.0,0.48100234]
[1734327015116,0.39645097,104730.0,104700.0,0.48100234]
[1734327015324,0.20548397,104730.0,104710.0,0.381982]
[1734327015549,0.12898397,104730.0,104720.0,0.25305466]
[1734327015751,0.00025527,104730.0,104720.0,0.40435466]
[1734327016154,0.00025527,104730.0,104720.0,0.64864536]
[1734327017363,0.00442742,104730.0,104720.0,0.64864536]
[1734327017745,0.00442742,104730.0,104720.0,0.363985]
[1734327019866,0.00419546,104730.0,104720.0,0.363985]
[1734327020066,0.11306512,104730.0,104710.0,0.1911606]
[1734327020265,0.28907333,104730.0,104710.0,0.1911606]
[1734327020645,0.237769,104730.0,104710.0,0.3821636]
[1734327021083,0.29983866,104730.0,104710.0,0.3821636]
[1734327021485,0.49080766,104730.0,104710.0,0.3821636]
[1734327024059,0.428738,104730.0,104710.0,0.3821636]
[1734327024262,0.57656709,104730.0,104710.0,0.3821636]
[1734327024438,0.51449743,104730.0,104710.0,0.3821636]
[1734327024644,0.57656709,104730.0,104710.0,0.3821636]
[1734327025146,0.49080766,104730.0,104710.0,0.3821636]
[1734327025345,0.57656728,104730.0,104710.0,0.3821636]
[1734327027420,0.67074254,104730.0,104710.0,0.3821636]
[1734327027761,0.67074254,104730.0,104710.0,0.6536546]
[1734327027762,0.27672862,104730.0,104710.0,0.6536546]
[1734327028383,0.27672862,104730.0,104710.0,0.4626516]
[1734327028620,0.27672862,104730.0,104710.0,0.6536456]
[1734327028953,0.2767278,104730.0,104710.0,0.6536456]
[1734327029756,0.0857588,104730.0,104710.0,0.6536456]
[1734327030552,0.0858451,104730.0,104720.0,0.190985]
[1734327030934,8.63e-05,104730.0,104710.0,0.51715417]
[1734327031161,8.63e-05,104730.0,104720.0,0.190985]
[1734327034958,0.2291215,104740.0,104720.0,0.38197]
[1734327035165,0.2291215,104740.0,104720.0,0.38213897]
[1734327035914,0.5487217,104740.0,104720.0,0.38213897]
[1734327036173,0.61079136,104740.0,104720.0,0.19115397]
[1734327037677,0.5487088,104740.0,104720.0,0.46043897]
[1734327038046,0.5487088,104740.0,104720.0,0.65141497]
[1734327038047,0.3577468,104740.0,104720.0,0.65141497]
[1734327038255,0.3577468,104740.0,104720.0,0.46042997]
[1734327038725,0.3577468,104740.0,104720.0,0.65140497]
[1734327038907,0.35774523,104740.0,104720.0,0.46041997]
[1734327039326,0.35774523,104740.0,104720.0,0.65139497]
[1734327039525,0.35774523,104740.0,104720.0,0.46041897]
[1734327040407,0.35774523,104740.0,104720.0,0.65139297]
[1734327040921,0.22911571,104740.0,104720.0,0.65139297]
[1734327043062,0.08575301,104740.0,104730.0,0.190967]
[1734327043680,8.63e-05,104740.0,104730.0,0.464908]
[1734327044994,0.2586636,104750.0,104730.0,0.65586]
[1734327045196,0.38729312,104750.0,104730.0,0.464903]
[1734327045401,0.57823212,104750.0,104730.0,0.464903]
[1734327045628,0.83124378,104750.0,104730.0,0.190951]
[1734327045828,0.72120178,104750.0,104730.0,0.190951]
[1734327046631,0.81549248,104750.0,104720.0,0.50691197]
[1734327046858,0.73459248,104750.0,104730.0,0.190967]
[1734327047709,0.92554048,104750.0,104730.0,0.190967]
[1734327050006,1.0970465,104750.0,104730.0,0.190967]
[1734327053429,0.190949,104740.0,104720.0,0.70761646]
[1734327053579,0.190949,104740.0,104720.0,0.51664146]
[1734327054120,0.190949,104740.0,104720.0,0.70761746]
[1734327054999,0.27670201,104740.0,104730.0,0.0001726]
[1734327055236,0.9855985,104750.0,104730.0,0.0001726]
[1734327055397,0.190949,104740.0,104730.0,0.0001726]
[1734327056523,1.00512478,104750.0,104730.0,0.1911396]
[1734327056717,1.11456114,104750.0,104730.0,0.1911396]
[1734327057589,0.94305512,104750.0,104730.0,0.1911396]
[1734327057774,1.00512478,104750.0,104730.0,0.1911396]
[1734327060629,0.190949,104740.0,104730.0,0.1911396]
[1734327061117,0.190949,104740.0,104730.0,0.2666396]
[1734327064104,0.92361514,104750.0,104730.0,0.2666396]
[1734327064105,0.84406243,104750.0,104730.0,0.2666396]
[1734327064358,1.03500443,104750.0,104730.0,0.2666396]
[1734327065023,1.05303684,104750.0,104730.0,0.2666396]
[1734327065222,0.88155502,104750.0,104730.0,0.2666396]
[1734327065433,1.05303584,104750.0,104730.0,0.2666396]
[1734327066766,0.86209284,104750.0,104730.0,0.2666396]
[1734327068607,0.08574041,104740.0,104730.0,0.2666396]
[1734327069938,0.79609283,104750.0,104730.0,0.2666396]
[1734327070978,0.79609283,104750.0,104730.0,0.4576056]
[1734327072739,0.12869691,104750.0,104740.0,0.213949]
[1734327072969,0.12869691,104750.0,104730.0,0.4575926]
[1734327073172,0.60485661,104750.0,104730.0,0.4575926]
[1734327073344,0.60491375,104750.0,104730.0,0.4575926]
[1734327074644,0.60491375,104750.0,104730.0,0.2666266]
[1734327075045,0.96741275,104750.0,104730.0,0.2666266]
[1734327075403,0.190949,104740.0,104730.0,0.0001726]
[1734327075608,0.66533175,104750.0,104730.0,0.0001726]
[1734327075806,0.85627575,104750.0,104730.0,0.0001726]
[1734327076008,1.04722375,104750.0,104730.0,0.0001726]
[1734327076218,1.10929341,104750.0,104730.0,0.0001726]
[1734327076738,1.04722375,104750.0,104730.0,0.2743386]
[1734327077676,1.04731447,104750.0,104730.0,0.2743386]
[1734327078737,0.85636647,104750.0,104730.0,0.2743386]
[1734327078932,0.77656647,104750.0,104730.0,0.2743386]
[1734327079199,0.30040177,104750.0,104740.0,0.190949]
[1734327079403,0.12879293,104750.0,104740.0,0.190949]
[1734327079739,0.31972293,104750.0,104730.0,0.6562506]
[1734327079936,0.57713833,104750.0,104730.0,0.6562506]
[1734327080338,0.57713833,104750.0,104730.0,0.4882846]
[1734327080561,0.76806933,104750.0,104730.0,0.4882846]
[1734327080737,0.70727933,104750.0,104730.0,0.2973286]
[1734327081147,0.89822233,104750.0,104730.0,0.2973286]
[1734327081970,0.53567049,104750.0,104730.0,0.2973286]
[1734327082180,0.70727933,104750.0,104730.0,0.2973286]
[1734327082327,0.63929557,104750.0,104730.0,0.2973286]
[1734327082709,0.83023757,104750.0,104730.0,0.2973286]
[1734327082916,0.190949,104740.0,104730.0,0.0231726]
[1734327083527,0.95443957,104750.0,104730.0,0.0231726]
[1734327083728,0.95443957,104750.0,104730.0,0.2141396]
[1734327085886,0.95443957,104750.0,104730.0,0.0231726]
[1734327086090,0.08580819,104740.0,104730.0,0.0231726]
[1734327086318,0.95443957,104750.0,104730.0,0.0231726]
[1734327086656,0.25742457,104750.0,104740.0,0.289549]
[1734327086862,0.08580819,104750.0,104740.0,0.289549]
[1734327087064,0.08582945,104750.0,104740.0,0.0986]
[1734327087360,0.08582945,104750.0,104740.0,0.289549]
[1734327090214,0.7681008,104760.0,104740.0,0.289549]
[1734327090451,8.63e-05,104750.0,104740.0,0.289549]
[1734327090971,0.08591575,104750.0,104740.0,0.289549]
[1734327092237,0.08591575,104750.0,104740.0,0.29966586]
[1734327093982,0.08591575,104750.0,104740.0,0.289549]
[1734327094301,0.08591575,104750.0,104740.0,0.0986]
[1734327094499,0.08591575,104750.0,104740.0,0.289549]
[1734327094500,8.63e-05,104750.0,104740.0,0.289549]
[1734327096674,8.63e-05,104750.0,104740.0,0.0986]
[1734327097091,8.63e-05,104750.0,104740.0,0.023]
[1734327098263,8.63e-05,104750.0,104730.0,0.47505812]
[1734327100471,0.1910173,104750.0,104730.0,0.47505812]
[1734327101387,0.1910173,104750.0,104730.0,0.47523072]
[1734327104477,0.44402996,104750.0,104730.0,0.0831726]
[1734327104691,0.190949,104740.0,104730.0,0.0001726]
[1734327107864,0.190949,104740.0,104710.0,0.71552609]
[1734327108155,0.65513828,104740.0,104710.0,0.82472309]
[1734327108580,0.46417428,104740.0,104710.0,0.82472309]
[1734327108777,0.65513528,104740.0,104710.0,0.82472309]
[1734327109119,0.65513528,104740.0,104710.0,0.76265343]
[1734327109280,0.65513528,104740.0,104710.0,0.82472309]
[1734327109482,0.65513528,104740.0,104710.0,0.82475218]
[1734327109685,0.46417128,104740.0,104710.0,0.82475218]
[1734327110013,0.27322228,104740.0,104710.0,0.82475218]
[1734327110159,0.46418228,104740.0,104710.0,0.82475218]
[1734327110963,0.46418228,104740.0,104710.0,0.90375218]
[1734327111613,0.46418228,104740.0,104710.0,0.71276018]
[1734327111886,0.27322128,104740.0,104720.0,0.381969]
[1734327112399,0.27322128,104740.0,104720.0,0.44403866]
[1734327113109,0.27322128,104740.0,104720.0,0.381969]
[1734327113309,0.27322128,104740.0,104720.0,0.3820553]
[1734327113501,0.27322128,104740.0,104720.0,0.44412496]
[1734327113659,0.27322128,104740.0,104720.0,0.3820553]
[1734327114665,0.08226128,104740.0,104720.0,0.3820553]
[1734327114875,0.33234283,104750.0,104730.0,0.06206966]
[1734327115082,0.24658557,104750.0,104730.0,0.19111728]
[1734327115309,0.0761,104750.0,104730.0,0.45797328]
[1734327116123,0.267032,104750.0,104730.0,0.45797328]
[1734327116286,0.190932,104750.0,104730.0,0.45797328]
[1734327120056,0.190932,104750.0,104730.0,0.46764221]
[1734327122029,0.190932,104750.0,104730.0,0.45797328]
[1734327122259,0.190932,104750.0,104730.0,0.26701728]
[1734327122609,0.27668883,104750.0,104730.0,0.26701728]
[1734327122999,0.190932,104750.0,104730.0,0.26701728]
[1734327123302,0.190932,104750.0,104730.0,0.45798328]
[1734327123707,0.84413993,104760.0,104730.0,0.64894028]
[1734327123858,1.12935663,104760.0,104730.0,0.64894028]
[1734327124057,1.12935663,104760.0,104730.0,0.45797428]
[1734327124623,0.08575683,104750.0,104730.0,0.45797428]
[1734327125249,0.08584313,104750.0,104730.0,0.64893128]
[1734327125645,0.08584313,104750.0,104730.0,0.45797428]
[1734327127370,0.08584313,104750.0,104730.0,0.64893028]
[1734327127800,0.08584313,104750.0,104730.0,0.45797328]
[1734327128758,0.08584313,104750.0,104730.0,0.64892928]
[1734327128876,0.08584313,104750.0,104740.0,0.190949]
[1734327129746,0.08585175,104750.0,104740.0,0.190949]
[1734327130344,0.21449993,104750.0,104740.0,0.190949]
[1734327131729,0.21449993,104750.0,104730.0,0.45797328]
[1734327131936,0.21449993,104750.0,104730.0,0.64892928]
[1734327132963,0.29199993,104750.0,104730.0,0.64888099]
[1734327133428,0.34159993,104750.0,104730.0,0.38202499]
[1734327133636,0.53253193,104750.0,104730.0,0.38202499]
[1734327134086,0.53255085,104750.0,104730.0,0.38202499]
[1734327136735,0.53255085,104750.0,104730.0,0.38219759]
[1734327137770,0.72348285,104750.0,104730.0,0.38219759]
[1734327138338,0.16328171,104740.0,104730.0,0.00028559]
[1734327138533,0.35423071,104740.0,104730.0,0.00028559]
[1734327138790,0.35423071,104740.0,104730.0,0.19125259]
[1734327138791,0.16328171,104740.0,104730.0,0.19125259]
[1734327139739,0.0775,104740.0,104730.0,0.19125259]
[1734327139944,0.74029528,104750.0,104730.0,0.19125259]
[1734327140623,0.93123728,104750.0,104730.0,0.19125259]